Cogmind - Beta 15 --- EXPLORER MODE // 2025.07.12 @ 17:31:31 Player: FrigidRock Result: Defending 0bPrime! Performance ------------- Evolutions (8) 4000 Regions Visited (25) 5000 Robots Destroyed (455) 2275 Value Destroyed (28497) 28497 Prototype IDs (86) 1720 Alien Tech Used (2) 400 Bonus (20587) 20587 TOTAL SCORE: 62479 Bonus ------- High Alert Combat Kills 264 Follower Combat Kills 735 Registered with UFD 300 Met Optimus in HQ 500 Met Data Miner 300 Met Zhirov 300 Met Warlord at Base 500 MAIN.C Attacked Warlord 500 Warlord Defense Kills 216 Met Optimus at Protoforge 1000 Completed Drillbomb Mission10000 Optimus Survived to 0b1 3000 Win 3000 Friendly Fire -28 Cogmind --------- Core Integrity 649/1450 Matter 300/300 Energy 92/100 System Corruption 10% Temperature Cool (0) Movement Core (50) Location 0bPrime Parts ------- > --- POWER (2) -------- (None) > --- PROPULSION (5) --- (None) > --- UTILITY (13) ----- (None) > --- WEAPON (4) ------- (None) > --- INVENTORY (5) ---- Improved Quantum Reactor Biometal Leg Experimental Energy Well (600) Advanced Matter Compressor (400) Z-bomb Delivery System Peak State ------------ > --- POWER ------------ Vortex Chain Reactor > --- PROPULSION ------- Enhanced Biometal Leg Centrium Leg High-density Centrium Leg High-density Centrium Leg Experimental Biometal Leg > --- UTILITY ---------- Large Storage Unit Experimental Targeting Computer Advanced Target Analyzer Experimental Core Analyzer Experimental Kinecellerator Centrium Light Armor Plating Centrium Heavy Armor Plating Experimental Focal Shield Experimental Thermal Defense Suite Advanced EM Shield System Mapper Experimental System Shield > --- WEAPON ----------- Heavy Neutron Cannon Heavy Neutron Cannon Hypervelocity Mass Driver Enhanced Hardcell Cannon > --- INVENTORY -------- Improved Quantum Reactor Experimental Energy Well Advanced Matter Compressor Vortex Cannon Z-bomb Delivery System UFD Drillbomb [Rating: 220] Favorites ----------- Power Fusion Reactor Engine Improved Ion Engine Power Core Hybrid Fission Core Reactor Fusion Reactor Propulsion Enhanced Biometal Leg Leg Enhanced Biometal Leg Wheel Wheel Utility Large Storage Unit Device Advanced Heat Sink Storage Large Storage Unit Processor Experimental Core Analyzer Hackware Improved Hacking Suite Protection Centrium Heavy Armor Plating Weapon Heavy Neutron Cannon Energy Gun Force Rifle Energy Cannon Heavy Neutron Cannon Ballistic Gun Heavy Assault Rifle Ballistic Cannon Enhanced Hardcell Cannon Launcher Rocket Launcher Build | -11 -10 -10 -10 -9 -9 -6 -6 -6 -6 -5 -5 -5 -5 -5 -4 -4 -4 -4 -4 -3 -3 -3 -2 -2 -2 ------- Run | Yrd Mat Min Sub Rec Scr Fac Low Low Dat Pro Fac Upp Upp War Pro Fac Upp Upp Zhi Pro Res Tes Res Qua Frg Slots Evolved 17 | . 1 . . . . 8 . . . . 2 . . . . 2 . . . . 2 . 2 . . Power 1 | . . . . . . . . . . . 1 . . . . . . . . . . . . . . Propulsion 3 | . . . . . . 3 . . . . . . . . . . . . . . . . . . . Utility 11 | . 1 . . . . 5 . . . . 1 . . . . 1 . . . . 2 . 1 . . Weapon 2 | . . . . . . . . . . . . . . . . 1 . . . . . . 1 . . Parts Attached 210 | 8 7 2 2 1 4 39 2 . . 4 10 4 5 6 8 19 2 . 1 2 24 17 6 6 31 Power 21 | 1 1 . . . . 6 . . . 1 . 1 . 1 . 2 . . . . 2 2 2 . 2 Engine 6 | 1 1 . . . . 4 . . . . . . . . . . . . . . . . . . . Core 1 | . . . . . . 1 . . . . . . . . . . . . . . . . . . . Reactor 14 | . . . . . . 1 . . . 1 . 1 . 1 . 2 . . . . 2 2 2 . 2 Propulsion 64 | 2 2 . . . 2 12 1 . . 2 4 1 4 2 5 5 1 . . . 4 2 3 1 11 Treads . | . . . . . . . . . . . . . . . . . . . . . . . . . . Leg 61 | 2 . . . . 1 12 1 . . 2 4 1 4 2 5 5 1 . . . 4 2 3 1 11 Wheel 3 | . 2 . . . 1 . . . . . . . . . . . . . . . . . . . . Hover . | . . . . . . . . . . . . . . . . . . . . . . . . . . Flight . | . . . . . . . . . . . . . . . . . . . . . . . . . . Utility 87 | 3 2 2 . . 2 14 1 . . 1 4 2 1 3 3 4 1 . 1 1 18 8 1 3 12 Device 44 | 1 . 2 . . 1 7 . . . 1 2 2 1 1 2 2 1 . . 1 7 5 1 1 6 Storage 7 | . 1 . . . . 1 . . . . . . . . . 1 . . 1 . 2 1 . . . Processor 13 | 1 . . . . 1 2 . . . . . . . 2 1 . . . . . 5 . . . 1 Hackware 5 | . . . . . . 1 . . . . . . . . . . . . . . 2 1 . 1 . Protection 18 | 1 1 . . . . 3 1 . . . 2 . . . . 1 . . . . 2 1 . 1 5 Artifact . | . . . . . . . . . . . . . . . . . . . . . . . . . . Weapon 38 | 2 2 . 2 1 . 7 . . . . 2 . . . . 8 . . . 1 . 5 . 2 6 Energy Gun 8 | . . . 1 1 . 2 . . . . . . . . . 1 . . . 1 . 1 . . 1 Energy Cannon 9 | . . . . . . 3 . . . . 2 . . . . 2 . . . . . . . 1 1 Ballistic Gun 10 | 2 2 . . . . 1 . . . . . . . . . 1 . . . . . . . . 4 Ballistic Cannon 7 | . . . . . . . . . . . . . . . . 3 . . . . . 3 . 1 . Launcher 4 | . . . 1 . . 1 . . . . . . . . . 1 . . . . . 1 . . . Special Weapon . | . . . . . . . . . . . . . . . . . . . . . . . . . . Impact Weapon . | . . . . . . . . . . . . . . . . . . . . . . . . . . Slashing Weapon . | . . . . . . . . . . . . . . . . . . . . . . . . . . Piercing Weapon . | . . . . . . . . . . . . . . . . . . . . . . . . . . Special Melee Weapon . | . . . . . . . . . . . . . . . . . . . . . . . . . . Unidentified Prototypes 28 | . . . . . . . . . . . . . . . . 2 . . 2 . 4 11 . 2 7 Corrupted Parts 1 | . . . . . . . . . . . . . . . . . . . . . . 1 . . . System Corruption 5 | . . . . . . . . . . . . . . . . . . . . . . 5 . . . Parts Lost 35 | . 1 . 1 . . 8 . . . 1 . 2 1 1 1 3 . 1 . 1 2 . . . 12 Power 2 | . . . . . . 1 . . . . . . . . . . . . . . . . . . 1 Propulsion 5 | . . . 1 . . . . . . . . 1 . . . . . 1 . . . . . . 2 Utility 19 | . 1 . . . . 5 . . . 1 . 1 1 . 1 1 . . . 1 2 . . . 5 Weapon 9 | . . . . . . 2 . . . . . . . 1 . 2 . . . . . . . . 4 Highest Loss Streak 4 | . 1 . 1 . . 4 . . . 1 . 2 1 1 1 3 . 1 . 1 1 . . . 4 To Critical Strikes 3 | . . . . . . . . . . . . . . . . . . . . . . . . . 3 Average Backups 11 | . . 3 6 7 8 9 14 15 15 13 13 14 14 14 13 12 13 14 13 13 13 13 12 13 9 Power 1 | . . 2 2 2 1 1 2 2 3 3 2 2 2 2 2 1 1 1 1 1 1 1 1 1 1 Propulsion 2 | . . . . . . 2 5 5 5 3 4 6 7 5 4 3 3 3 2 2 2 1 1 1 . Utility 2 | . . 1 3 3 4 3 4 4 4 4 3 1 1 1 1 2 3 3 2 2 1 2 3 4 3 Weapon 3 | . . . 1 2 2 1 2 2 2 2 2 3 3 4 4 4 5 5 5 5 6 6 5 5 3 Tool/Special . | . . . . . . . . . . . . . . . . . . . . . . . . . . Unused Backups 15 | . . . . . 3 1 . . . . 2 . . 1 . 1 . . 1 . . 1 . 2 3 Power 3 | . . . . . . . . . . . 1 . . 1 . 1 . . . . . . . . . Propulsion 1 | . . . . . . . . . . . . . . . . . . . . . . . . . 1 Utility 4 | . . . . . 2 . . . . . . . . . . . . . . . . . . 2 . Weapon 3 | . . . . . . 1 . . . . 1 . . . . . . . . . . 1 . . . Tool/Special 4 | . . . . . 1 . . . . . . . . . . . . . 1 . . . . . 2 Average Slot Usage (%) 93 | . 85 100 89 87 89 96 100 100 98 97 97 91 92 89 90 94 95 92 78 92 96 98 94 94 88 Engine 2 | . 12 12 12 12 12 3 6 6 6 . . . . . . . . . . . . . . . . Reactor 5 | . . . . . . 2 . . . 5 5 5 5 5 5 9 10 10 10 10 9 9 8 8 5 Leg 19 | . 18 . . . . 30 31 31 31 31 26 26 27 27 27 25 25 22 22 25 21 22 20 19 17 Wheel 2 | . 5 25 14 12 16 . . . . . . . . . . . . . . . . . . . . Device 15 | . 2 8 12 12 12 15 13 12 12 12 15 14 14 12 14 15 15 15 14 15 19 20 19 19 15 Storage 5 | . 7 12 12 12 12 6 6 6 6 6 5 5 5 5 5 5 5 5 5 5 4 4 4 4 3 Processor 12 | . . . . . 7 11 12 12 12 12 11 11 11 14 19 15 15 15 15 15 17 17 12 12 11 Hackware 4 | . . . . . . 5 6 6 6 6 5 5 5 5 5 5 5 5 5 5 4 4 8 8 7 Protection 6 | . 14 15 12 12 4 6 10 12 12 9 8 5 5 5 1 4 5 5 5 5 4 4 4 4 6 Energy Gun 2 | . . . 6 7 12 5 6 6 5 6 1 1 . . 4 1 . . . . . . . . . Energy Cannon 4 | . . . . . . 5 6 6 5 6 8 9 11 10 5 4 10 10 . 10 5 4 4 3 4 Ballistic Gun 1 | . 24 25 14 5 . 1 . . . . . . . . . 1 . . . . . . . . . Ballistic Cannon 4 | . . . . . . . . . . . . . . . . 7 . . . . 7 9 12 12 10 Launcher 1 | . . . 3 12 9 . . . . . . . . . . . 4 5 . 2 . . . . . Peak Build Rating 220 | 7 12 15 15 14 17 80 76 74 74 77 100 102 102 127 129 145 140 138 137 140 170 189 209 210 220 Average Rating 121 | 5 8 13 14 14 14 68 74 73 73 74 90 97 99 118 123 139 137 132 111 134 155 172 206 206 201 On Entrance 93 | . 7 12 15 14 14 14 74 74 74 74 73 98 98 102 121 123 140 138 129 137 131 170 189 209 204 Naked Turns 57 | . . . . . . . . . . . . . . . . . . . . . . . . . 57 Heaviest Build 147 | 7 29 29 30 30 30 53 54 54 54 57 87 89 89 96 91 102 102 97 97 99 119 121 134 137 147 Greatest Support 156 | 20 20 20 20 10 26 89 88 88 88 95 100 100 95 120 125 130 130 130 125 125 138 152 154 156 156 Greatest Overweight (x) 2 | . 2 1 2 2 2 . . . . . . 1 . . . . . . . . 1 . . 1 1 Average Overweight (x) . | . . 1 1 2 1 . . . . . . . . . . . . . . . . . . . . Largest Inventory Capacity 15 | 5 10 10 10 10 10 15 15 15 15 15 15 15 15 15 15 15 15 15 15 15 15 15 15 15 15 Average Capacity 13 | 5 8 10 10 10 10 12 15 15 15 15 15 15 15 15 15 15 15 15 15 15 15 15 15 15 14 Most Carried 15 | . 3 7 8 9 10 14 15 15 15 15 15 15 15 15 15 15 15 15 15 15 15 15 15 15 15 Average Carried 12 | . . 4 7 8 9 9 14 14 15 13 13 14 14 14 13 13 14 14 14 14 14 14 13 14 12 Final Capacity 15 | 5 10 10 10 10 10 15 15 15 15 15 15 15 15 15 15 15 15 15 15 15 15 15 15 15 5 Final Carried 15 | . 2 7 8 9 10 14 15 15 15 13 15 14 15 14 13 14 15 15 14 14 15 14 15 15 5 Class Distribution -------------------- 46% | Hacker-Mutant 42% | Hacker-Gunner 8% | Hacker-Tank Dominant Class ---------------- Hacker-Mutant | -10/Materials Hacker-Mutant | -10/Mines Hacker-Mutant | -10/Subcaves Hacker-Mutant | -9/Recycling Hacker-Mutant | -9/Scraptown Hacker-Mutant | -6/Factory Hacker-Mutant | -6/Lower Caves Hacker-Mutant | -6/Lower Caves Hacker-Mutant | -6/Data Miner Hacker-Mutant | -5/Proximity Caves Hacker-Mutant | -5/Factory Hacker-Mutant | -5/Upper Caves Hacker-Mutant | -5/Upper Caves Hacker-Mutant | -5/Warlord Hacker-Mutant | -4/Proximity Caves Hacker-Gunner | -4/Factory Hacker-Gunner | -4/Upper Caves Hacker-Gunner | -4/Upper Caves Hacker-Mutant | -4/Zhirov Hacker-Mutant | -3/Proximity Caves Hacker-Gunner | -3/Research Hacker-Gunner | -3/Testing Hacker-Tank | -2/Research Hacker-Gunner | -2/Quarantine Hacker-Gunner | -2/Protoforge Resources | -11 -10 -10 -10 -9 -9 -6 -6 -6 -6 -5 -5 -5 -5 -5 -4 -4 -4 -4 -4 -3 -3 -3 -2 -2 -2 ----------- Run | Yrd Mat Min Sub Rec Scr Fac Low Low Dat Pro Fac Upp Upp War Pro Fac Upp Upp Zhi Pro Res Tes Res Qua Frg Matter Collected 13793 | 283 125 85 158 134 40 520 113 62 . 80 177 287 88 70 110 1394 185 76 . 483 2031 834 1277 1005 4176 Remotely . | . . . . . . . . . . . . . . . . . . . . . . . . . . Salvage Created 21512 | 40 244 63 210 87 . 1647 . 349 . 282 937 741 215 101 527 2604 210 100 . 358 2873 730 2205 805 6184 Parts 971 | 7 17 4 11 4 . 84 . 12 . 15 43 24 14 6 24 118 12 3 . 22 150 34 77 45 245 Haulers Intercepted 2 | . 1 . . . . . . . . . . . . . . . . . . . . . 1 . . Recyclers Shooed 3 | . . . . . . . . . . . 1 . . . . 1 . . . . 1 . . . . Parts Field Recycled . | . . . . . . . . . . . . . . . . . . . . . . . . . . Retrieved Matter . | . . . . . . . . . . . . . . . . . . . . . . . . . . Parts Self-Destructed . | . . . . . . . . . . . . . . . . . . . . . . . . . . Prevented . | . . . . . . . . . . . . . . . . . . . . . . . . . . Kills | -11 -10 -10 -10 -9 -9 -6 -6 -6 -6 -5 -5 -5 -5 -5 -4 -4 -4 -4 -4 -3 -3 -3 -2 -2 -2 ------- Run | Yrd Mat Min Sub Rec Scr Fac Low Low Dat Pro Fac Upp Upp War Pro Fac Upp Upp Zhi Pro Res Tes Res Qua Frg Combat Hostiles Destroyed 380 | . 4 1 9 . . 25 . 6 . 5 16 17 5 4 8 49 11 3 . 10 60 13 23 11 100 Guns 36 | . 4 1 2 . . 6 . 3 . 2 1 1 . . 2 12 . . . . . . . . 2 Cannons 284 | . . . . . . 15 . 2 . 3 9 8 4 4 5 27 2 2 . 6 53 13 23 11 97 AOE 55 | . . . 7 . . 4 . . . . 4 8 . . . 10 9 1 . 4 7 . . . 1 Classes Destroyed 25 | 1 6 . 3 1 . 3 . 1 . 1 . 1 . . . . . . . . . 3 . 1 4 Worker 10 | . 1 . . . . 2 . . . . . . . . . 1 . . . . . . . 3 3 Builder 11 | . 1 . . . . . . . . . . . . . . 4 . . . . 3 . . 3 . Tunneler 6 | 2 . 1 . . . . . . . . . . . . . . . . . . 2 . 1 . . Hauler 2 | . 1 . . . . . . . . . . . . . . . . . . . . . 1 . . Recycler 8 | . . . . 1 . . . . . . . . . . . 2 . . . . 1 . 4 . . Operator 5 | . . . . . . 2 . . . . . . . . . 1 . . . . . 1 1 . . Drone 3 | . . . . . . . . . . 1 . . . . 2 . . . . . . . . . . Turret 2 | . . . 2 . . . . . . . . . . . . . . . . . . . . . . Watcher 30 | . 1 . . . . 4 . . . . 2 . . . . 3 . . . . 6 2 4 2 6 Swarmer 58 | . 2 . 4 . . 3 . 2 . . . 6 2 4 . 11 9 2 . 4 8 . . . 1 Saboteur 1 | . . . . . . . . . . . . . . . . . . . . . . . . . 1 Grunt 95 | . 2 1 . . . 11 . . . 2 4 3 . . . 23 . . . 4 18 4 7 3 13 Brawler 9 | . . . . . . . . . . . . 3 . . . 1 . . . . 1 . . . 4 Duelist 10 | . . . . . . . . . . . . 3 . . . . . . . . 1 . 2 . 4 Protector 6 | . . . . . . . . . . . . . . . . . . . . . . . . . 6 Researcher 1 | . . . . . . . . . . . . . . . . . . . . . . 1 . . . Sentry 32 | . . . 1 . . 4 . . . . 3 2 . . . 5 . 1 . . 7 3 2 . 4 Hunter 47 | . . . . . . 3 . . . . 3 . 3 . 6 1 2 . . . 9 . 2 5 13 Programmer 71 | . . . . . . 4 . . . 2 6 . . . . 8 . . . 2 16 3 10 2 18 Hotshot 8 | . . . . . . . . . . . . . . . . . . . . . . . . . 8 Striker 12 | . . . . . . . . . . . . . . . . . . . . . . 2 . . 10 Executioner 15 | . . . . . . . . . . . . . . . . . . . . . . . . . 15 Alpha 7 3 | . . . . . . . . . . . . . . . . . . . . . . 1 . . 2 Fortress 1 | . . . . . . . . . . . . . . . . . . . . . . . . 1 . Subdweller 4 | . . . 4 . . . . . . . . . . . . . . . . . . . . . . Scrapoid 1 | . . . . . . . . . . . . . . . . . . . . . . . . . 1 Thug 1 | . . . . . . . . 1 . . . . . . . . . . . . . . . . . Savage 3 | . . . . . . . . 3 . . . . . . . . . . . . . . . . . Best Kill Streak 19 | 2 4 1 6 1 . 5 . 4 . 2 4 10 2 4 2 18 3 2 . 4 8 3 7 9 19 Combat Bots Only 19 | . 4 1 4 . . 4 . 4 . 2 3 10 2 4 2 11 3 2 . 4 7 3 5 5 19 Max Kills in Single Turn 8 | 1 1 1 2 1 . 2 . 1 . 1 3 6 1 2 1 8 3 1 . 3 4 2 2 3 2 Gunslinging . | . . . . . . . . . . . . . . . . . . . . . . . . . . Exploded 7 | . . . 2 . . 2 . . . . 3 6 . . . 7 3 1 . 3 3 . . . 1 Melee . | . . . . . . . . . . . . . . . . . . . . . . . . . . Uniques/NPCs Destroyed . | . . . . . . . . . . . . . . . . . . . . . . . . . . Combat | -11 -10 -10 -10 -9 -9 -6 -6 -6 -6 -5 -5 -5 -5 -5 -4 -4 -4 -4 -4 -3 -3 -3 -2 -2 -2 -------- Run | Yrd Mat Min Sub Rec Scr Fac Low Low Dat Pro Fac Upp Upp War Pro Fac Upp Upp Zhi Pro Res Tes Res Qua Frg Hostile Shots Fired 2127 | . 48 8 43 6 . 302 . 39 . 29 87 83 24 101 82 159 58 26 . 27 250 29 79 77 570 Missed 743 | . 18 2 14 2 . 103 . 20 . 8 27 27 4 44 29 62 30 16 . 12 103 12 29 18 163 Hits 1384 | . 30 6 29 4 . 199 . 19 . 21 60 56 20 57 53 97 28 10 . 15 147 17 50 59 407 Melee 17 | . . . . . . . . 1 . . . 1 . . . . . . . . 4 . 2 . 9 Projectile 1367 | . 30 6 29 4 . 199 . 18 . 21 60 55 20 57 53 97 28 10 . 15 143 17 48 59 398 AOE 13 | . . . . . . 1 . . . . . . . 12 . . . . . . . . . . . Critical Strikes 84 | . . . 1 . . 4 . 3 . 1 4 2 . 3 3 3 . . . 3 10 1 5 6 35 Part Disruptions 7 | . . . . . . . . . . . . . . . . . . . . . 1 2 1 . 3 Damage Taken 15820 | . 210 46 207 38 . 1783 . 232 . 222 895 628 227 1006 581 1503 323 107 . 196 1072 228 376 595 5345 Core 1700 | . 39 7 49 9 . 196 . . . 36 148 28 . 131 38 71 35 14 . 28 70 . 17 37 747 Absorbed by Shields 1549 | . . . . . . . . . . . 269 99 . . . . . . . 43 1138 . . . . Redirected to Shielding 427 | . 6 . . . . 158 . 6 . 9 . . . . . . . . . . . . . . 248 Ignored by Resistances 14604 | . 135 30 135 24 . 1109 . 137 . 128 481 433 139 580 344 888 198 63 . 140 1182 226 951 1052 6229 Regen/Repaired (Parts) 825 | . . . . . . . . . . . 146 . . 214 . . . . . . 296 . . . 169 Core Remaining (%) 74 | 100 . . . . 58 . . . . 72 . . . . 65 . . . . 87 . 94 . . 44 Volleys Fired 896 | 5 28 9 33 2 . 93 . 17 . 14 62 28 11 4 24 90 11 11 . 11 126 33 45 36 203 Largest 4 | 2 2 2 2 1 . 2 . 2 . 2 2 2 2 2 2 3 2 2 . 2 3 3 4 4 4 Hottest 334 | 40 46 46 83 33 . 165 . 165 . 165 180 180 180 180 170 278 220 220 . 220 278 226 276 276 334 Shots Fired 2350 | 10 56 18 52 2 . 167 . 34 . 28 120 56 22 8 48 255 20 22 . 21 306 85 165 142 713 Gun 370 | 10 56 18 38 . . 81 . 17 . 14 18 6 . . 24 65 . . . . . . . . 23 Cannon 1948 | . . . . . . 84 . 17 . 14 100 48 22 8 24 188 17 22 . 20 303 85 165 142 689 Launcher 32 | . . . 14 2 . 2 . . . . 2 2 . . . 2 3 . . 1 3 . . . 1 Special . | . . . . . . . . . . . . . . . . . . . . . . . . . . Kinetic 1211 | 10 56 18 25 . . 18 . . . . . . . . . 151 . . . . 166 59 126 112 470 Thermal 1047 | . . . 13 . . 124 . 34 . 28 118 54 22 8 48 102 17 22 . 20 137 26 39 20 215 Explosive 32 | . . . 14 2 . 2 . . . . 2 2 . . . 2 3 . . 1 3 . . . 1 Electromagnetic 23 | . . . . . . 23 . . . . . . . . . . . . . . . . . . . Entropic 37 | . . . . . . . . . . . . . . . . . . . . . . . . 10 27 Robot Hit Streak 68 | 4 26 44 68 2 . 22 . 8 . 20 18 18 9 9 13 21 35 5 . 16 58 33 23 28 27 Robot Miss Streak 6 | 1 1 . 1 . . 2 . 1 . 3 3 6 1 . 1 2 5 3 . 6 3 2 2 1 2 Penetration Max 2 | . . . . . . . . . . . . . . . . 1 . . . . . 1 1 2 1 Secondary Targets 3 | . 2 . 1 . . . . . . . . . . . . . . . . . . . . . . Max Gunslinging Chain 1 | . 1 . 1 . . . . . . . . . . . . . . . . . . . . . . Shots Hit Robots 1572 | 8 46 18 27 2 . 133 . 16 . 18 65 39 13 5 40 174 15 6 . 17 212 55 100 107 456 Core Hits 881 | 3 15 4 17 3 . 71 . 9 . 8 38 43 6 4 18 125 22 4 . 18 138 28 51 52 204 Critical Kills 99 | . . . . . . . . 1 . 1 2 . 1 . 1 6 . . . . . 8 22 10 47 Critical Parts Destroyed 117 | . 1 . . . . . . 1 . . 2 . . . . 10 . . . . . 13 20 15 55 Critical Strikes 290 | . 1 . 1 . . . . 2 . 1 4 . 1 . 1 21 . . . . 22 27 46 36 127 Burn 1 | . . . . . . . . . . . . . . . . 1 . . . . . . . . . Meltdown 5 | . . . . . . . . 1 . . 2 . 1 . 1 . . . . . . . . . . Destroy 229 | . 1 . 1 . . . . 1 . 1 2 . . . . 16 . . . . . 27 43 32 105 Blast 50 | . . . . . . . . . . . . . . . . 4 . . . . 22 . 3 3 18 Sunder 5 | . . . . . . . . . . . . . . . . . . . . . . . . 1 4 Melee Attacks . | . . . . . . . . . . . . . . . . . . . . . . . . . . Impact . | . . . . . . . . . . . . . . . . . . . . . . . . . . Slashing . | . . . . . . . . . . . . . . . . . . . . . . . . . . Piercing . | . . . . . . . . . . . . . . . . . . . . . . . . . . Sneak Attacks . | . . . . . . . . . . . . . . . . . . . . . . . . . . Combat Hostiles . | . . . . . . . . . . . . . . . . . . . . . . . . . . Follow-up Attacks . | . . . . . . . . . . . . . . . . . . . . . . . . . . Damage Inflicted 59828 | 76 400 264 877 70 . 3726 . 457 . 522 2916 2186 449 223 1233 7652 935 306 . 1148 10234 1635 3068 3287 18164 Guns 5497 | 76 398 264 305 . . 1293 . 215 . 258 318 120 . . 564 1205 . . . . . . . . 481 Cannons 47058 | . . . . . . 1988 . 242 . 264 1988 1135 449 223 669 4944 537 249 . 654 9094 1635 2837 3038 17112 Explosions 7020 | . . . 572 70 . 371 . . . . 587 931 . . . 1477 398 57 . 494 1037 . 206 249 571 Melee . | . . . . . . . . . . . . . . . . . . . . . . . . . . Ramming 253 | . 2 . . . . 74 . . . . 23 . . . . 26 . . . . 103 . 25 . . Kinetic 23821 | 76 398 264 225 . . 328 . . . . . . . . . 3118 . . . . 4920 834 1686 1733 10239 Thermal 28490 | . . . 80 . . 2758 . 457 . 522 2306 1255 449 223 1233 3197 537 306 . 779 4344 801 1357 849 7037 Explosive 5318 | . . . 572 70 . 252 . . . . 587 931 . . . 1272 398 . . 369 867 . . . . Electromagnetic 353 | . . . . . . 314 . . . . . . . . . 39 . . . . . . . . . Impact . | . . . . . . . . . . . . . . . . . . . . . . . . . . Slashing . | . . . . . . . . . . . . . . . . . . . . . . . . . . Piercing . | . . . . . . . . . . . . . . . . . . . . . . . . . . Entropic 1593 | . . . . . . . . . . . . . . . . . . . . . . . . 705 888 Highest Corruption 10 | . . . . . . . . . . 2 4 1 . . . 2 2 2 2 2 3 5 1 1 10 Average Corruption 3 | . . . . . . . . . . 1 2 1 . . . 1 2 2 2 2 1 2 1 1 5 Corruption Purged 10 | . . . . . . . . . . . 4 1 . . . . . . . . 1 4 . . . Corruption Blocked . | . . . . . . . . . . . . . . . . . . . . . . . . . . Effects 194 | . . . . . . . . . . 3 21 . . . . 19 7 3 4 6 17 3 5 9 97 Message Errors 47 | . . . . . . . . . . 1 4 . . . . 3 4 1 1 1 5 . . 2 25 Matter Fused 49 | . . . . . . . . . . . 7 . . . . 5 1 1 2 3 2 2 1 2 23 Heat Flow Errors 21 | . . . . . . . . . . 2 3 . . . . 1 . . . 1 2 . 1 . 11 Energy Discharges 22 | . . . . . . . . . . . 1 . . . . 3 1 . 1 . 1 1 1 2 11 Parts Rejected 2 | . . . . . . . . . . . . . . . . . . . . . 1 . . . 1 Parts Fused 1 | . . . . . . . . . . . . . . . . 1 . . . . . . . . . Data Loss (minor) 22 | . . . . . . . . . . . 1 . . . . 4 . . . 1 2 . 1 2 11 Data Loss (major) 7 | . . . . . . . . . . . 1 . . . . . . 1 . . 1 . . . 4 Misfires 5 | . . . . . . . . . . . 2 . . . . . 1 . . . 1 . . 1 . Alerts 5 | . . . . . . . . . . . 1 . . . . 2 . . . . . . . . 2 Weapon Failures 13 | . . . . . . . . . . . 1 . . . . . . . . . 2 . 1 . 9 Overload Shots . | . . . . . . . . . . . . . . . . . . . . . . . . . . Overflow Damage 1599 | . . . 2 . . 113 . . . . 82 73 . 9 . 351 . . . 24 458 . 59 59 369 Projectiles 1436 | . . . . . . 113 . . . . 82 69 . 9 . 337 . . . . 440 . 37 . 349 Explosions 163 | . . . 2 . . . . . . . . 4 . . . 14 . . . 24 18 . 22 59 20 Melee . | . . . . . . . . . . . . . . . . . . . . . . . . . . Knockbacks 157 | . . . . . . . . . . . . . . . . 17 . . . . 36 5 18 3 78 Impact 2 | . . . . . . . . . . . . . . . . . . . . . 1 . 1 . . Kinetic 144 | . . . . . . . . . . . . . . . . 16 . . . . 31 5 16 3 73 Secondary 11 | . . . . . . . . . . . . . . . . 1 . . . . 4 . 1 . 5 Self-Inflicted Damage 596 | . . . . . . 74 . . . . 35 27 . . . 307 22 . . 34 41 . 11 12 33 Shots 24 | . . . . . . 4 . . . . 2 2 . . . 7 2 . . 1 3 . 1 1 1 Rammed . | . . . . . . . . . . . . . . . . . . . . . . . . . . Targets Rammed 25 | . 1 . . . . 8 . . . . 3 . . . . 2 . . . . 8 . 3 . . Kicked 25 | . 1 . . . . 8 . . . . 3 . . . . 2 . . . . 8 . 3 . . Crushed . | . . . . . . . . . . . . . . . . . . . . . . . . . . Highest Temperature 426 | . 30 36 2 17 . 262 . 258 . 234 348 378 . 193 196 426 405 333 . 154 269 132 43 89 201 Average Temperature 97 | . 12 12 2 11 . 59 . 80 . 82 106 161 . 69 107 131 178 121 . 44 64 58 23 54 39 Received Heat Transfer 3072 | . 159 45 159 18 . 734 . 90 . 48 102 123 . 54 . 243 12 9 . 26 140 27 99 321 663 Effects 4 | . . . . . . . . 1 . . . . . . . 1 1 . . . 1 . . . . Energy Bleed 1 | . . . . . . . . 1 . . . . . . . . . . . . . . . . . Interference 1 | . . . . . . . . . . . . . . . . . . . . . 1 . . . . Matter Decay 2 | . . . . . . . . . . . . . . . . 1 1 . . . . . . . . Siege Activations . | . . . . . . . . . . . . . . . . . . . . . . . . . . Martial Activations . | . . . . . . . . . . . . . . . . . . . . . . . . . . Shielding Activations . | . . . . . . . . . . . . . . . . . . . . . . . . . . Robots Disrupted 6 | . . . . . . 1 . . . . . . . . . 2 . . . . 2 . . . 1 Combat Hostiles 5 | . . . . . . 1 . . . . . . . . . 1 . . . . 2 . . . 1 Robots Corrupted . | . . . . . . . . . . . . . . . . . . . . . . . . . . Combat Hostiles . | . . . . . . . . . . . . . . . . . . . . . . . . . . Parts Fried . | . . . . . . . . . . . . . . . . . . . . . . . . . . Impact Corruptions 3 | . . . . . . . . . . . . . . . . . . . . . 3 . . . . Robots Melted 5 | . . . . . . . . 1 . . 2 . 1 . 1 . . . . . . . . . . Combat Hostiles 5 | . . . . . . . . 1 . . 2 . 1 . 1 . . . . . . . . . . Parts Melted 47 | . . . 3 . . 11 . 1 . 2 13 6 4 . 6 . . . . . . . . . 1 Heat Transferred 13075 | . . . 100 . . 3552 . 629 . 666 2442 1406 481 222 1480 1247 . . . 100 100 . 150 150 350 Parts Sabotaged 2 | . . . . . . . . . . . . . . . . . . . . . . . . . 2 Parts Stolen . | . . . . . . . . . . . . . . . . . . . . . . . . . . Parts Stripped . | . . . . . . . . . . . . . . . . . . . . . . . . . . Power Chain Reactions 15 | . . . . . . 1 . . . . . . . . . 2 . 1 . 1 2 . 2 1 5 Alert | -11 -10 -10 -10 -9 -9 -6 -6 -6 -6 -5 -5 -5 -5 -5 -4 -4 -4 -4 -4 -3 -3 -3 -2 -2 -2 ------- Run | Yrd Mat Min Sub Rec Scr Fac Low Low Dat Pro Fac Upp Upp War Pro Fac Upp Upp Zhi Pro Res Tes Res Qua Frg Maximum Alert Level 2 | . . . . . . . . . . . 1 . . . . 2 . . . . 1 . 1 . 2 Low Security (%) 85 | 100 100 100 . 100 . 100 . . . . 88 . . . . 48 . . . . 82 100 90 100 87 Level 1 12 | . . . . . . . . . . . 11 . . . . 50 . . . . 17 . 9 . 5 Level 2 1 | . . . . . . . . . . . . . . . . 1 . . . . . . . . 7 Level 3 . | . . . . . . . . . . . . . . . . . . . . . . . . . . Level 4 . | . . . . . . . . . . . . . . . . . . . . . . . . . . Level 5 . | . . . . . . . . . . . . . . . . . . . . . . . . . . High Security . | . . . . . . . . . . . . . . . . . . . . . . . . . . Max Security . | . . . . . . . . . . . . . . . . . . . . . . . . . . Peak Influence 582 | 10 65 31 . 39 . 129 . . . . 300 . . . . 425 . . . . 321 178 239 196 582 Initial 300 | . . . . 36 . . . . . . 300 . . . . 159 . . . . 20 118 2 2 1 Average 82 | 1 14 2 . 9 . 18 . . . . 83 . . . . 194 . . . . 84 43 81 45 95 Influence Increases 12500 | 10 125 71 140 39 . 848 . 95 . 135 894 420 150 275 160 1956 290 75 . 230 2070 498 817 396 2806 Destroy 0b10 Robot/C 7660 | . 80 40 140 20 . 520 . 40 . 80 320 380 120 80 120 1120 220 60 . 200 1240 320 460 220 1880 Destroy 0b10 Robot/NC 410 | 10 20 5 . 5 . 40 . . . 5 10 . . . 10 60 . . . . 60 15 55 40 75 Destroy Leader 1474 | . 24 10 . . . 158 . 10 . 20 94 20 30 . 30 216 40 . . 30 282 34 120 24 332 Allied During Kill 35 | . . 1 . . . . . . . . . 5 . . . 12 . . . . 6 11 . . . Trap Triggered on 0b10 40 | . . . . . . . . . . . . . . . . . . . . . 30 . 10 . . Successful Hack 164 | . . . . . . 19 . . . . 16 . . . . . . . . . 56 22 . 9 42 Disable Machine 132 | . . . . . . 16 . . . . 4 . . . . 60 . . . . 8 12 4 4 24 Destroy Structure 1505 | . 1 . . 14 . 65 . . . . 150 . . . . 278 . . . . 268 84 153 99 393 Advance Influence 450 | . . . . . . . . . . . 300 . . . . 150 . . . . . . . . . Partial Spotted 30 | . . . . . . 15 . . . . . . . . . . . . . . 15 . . . . Lose Combat Pursuer 600 | . . 15 . . . 15 . 45 . 30 . 15 . 195 . 60 30 15 . . 105 . 15 . 60 Influence Decreases 11993 | 10 125 71 35 144 . 848 . 95 . 135 789 400 220 190 280 1664 552 125 . 190 1828 773 817 399 2303 Entered New Map 753 | . . . . 69 . . . . . . . 55 45 55 140 11 163 18 . . 20 164 5 5 3 Time Decay 10115 | 10 115 70 35 75 . 766 . 95 . 135 779 310 165 105 135 1538 389 97 . 185 1546 542 660 394 1969 Lost Part 265 | . 10 . . . . 50 . . . . . 15 10 10 5 30 . 10 . 5 10 . . . 110 Lost Ally 156 | . . 1 . . . 5 . . . . . 20 . 20 . 50 . . . . 40 20 . . . Purge Threat 704 | . . . . . . 27 . . . . 10 . . . . 35 . . . . 212 47 152 . 221 Squads Dispatched 71 | . . . . . . 9 . . . . 9 . . . . 17 . . . . 16 2 6 2 10 Investigation 29 | . . . . . . 4 . . . . 6 . . . . 8 . . . . 6 . 2 . 3 Extermination 26 | . . . . . . 4 . . . . 2 . . . . 4 . . . . 5 2 3 2 4 Reinforcement 13 | . . . . . . 1 . . . . 1 . . . . 4 . . . . 3 . 1 . 3 Assault 1 | . . . . . . . . . . . . . . . . 1 . . . . . . . . . Garrison 2 | . . . . . . . . . . . . . . . . . . . . . 2 . . . . Intercept . | . . . . . . . . . . . . . . . . . . . . . . . . . . Searches Triggered . | . . . . . . . . . . . . . . . . . . . . . . . . . . Data Miner Redirects 4 | . . . . . . . . . . . . . . . . 3 . . . . 1 . . . . Construction Impeded 6 | . . . . . . . . . . . 1 . . . . 2 . . . . 1 . 1 . 1 Haulers Reinforced 1 | . . . . . . . . . . . . . . . . 1 . . . . . . . . . Active Scanning Responses . | . . . . . . . . . . . . . . . . . . . . . . . . . . Cargo Convoy Interrupts . | . . . . . . . . . . . . . . . . . . . . . . . . . . Stealth | -11 -10 -10 -10 -9 -9 -6 -6 -6 -6 -5 -5 -5 -5 -5 -4 -4 -4 -4 -4 -3 -3 -3 -2 -2 -2 --------- Run | Yrd Mat Min Sub Rec Scr Fac Low Low Dat Pro Fac Upp Upp War Pro Fac Upp Upp Zhi Pro Res Tes Res Qua Frg Distress Signals 20 | . . . . . . 2 . . . . 1 . . 2 . 2 . . . . 4 1 1 . 7 Communications Jammed . | . . . . . . . . . . . . . . . . . . . . . . . . . . Distress Signals . | . . . . . . . . . . . . . . . . . . . . . . . . . . Times Spotted 545 | . 7 2 12 1 . 36 . 8 . 8 23 20 6 30 8 66 14 4 . 9 75 18 29 13 156 Peak Tracking Total 17 | . 4 2 6 1 . 7 . 7 . 2 3 10 2 17 2 9 3 3 . 4 8 4 4 4 16 Tactical Retreats 28 | . . 1 . . . 1 . 2 . 2 . 1 . 7 . 2 1 1 . . 5 . 1 . 4 Traps | -11 -10 -10 -10 -9 -9 -6 -6 -6 -6 -5 -5 -5 -5 -5 -4 -4 -4 -4 -4 -3 -3 -3 -2 -2 -2 ------- Run | Yrd Mat Min Sub Rec Scr Fac Low Low Dat Pro Fac Upp Upp War Pro Fac Upp Upp Zhi Pro Res Tes Res Qua Frg Traps Triggered 13 | . . . . . . 3 . . . . 3 . . . . 1 . . . . 2 1 3 . . Indirectly . | . . . . . . . . . . . . . . . . . . . . . . . . . . Trap Hack Attempts . | . . . . . . . . . . . . . . . . . . . . . . . . . . Triggered . | . . . . . . . . . . . . . . . . . . . . . . . . . . Disarmed 6 | . . . . . . . . . . . 6 . . . . . . . . . . . . . . Reprogrammed 14 | . . . . . . . . . . . . . . . . . . . . . 3 . 5 . 6 Reused 4 | . . . . . . . . . . . . . . . . . . . . . 3 . 1 . . Traps Extracted . | . . . . . . . . . . . . . . . . . . . . . . . . . . Installed . | . . . . . . . . . . . . . . . . . . . . . . . . . . Triggered 4 | . . . . . . . . . . . . . . . . . . . . . 3 . 1 . . Machines | -11 -10 -10 -10 -9 -9 -6 -6 -6 -6 -5 -5 -5 -5 -5 -4 -4 -4 -4 -4 -3 -3 -3 -2 -2 -2 ---------- Run | Yrd Mat Min Sub Rec Scr Fac Low Low Dat Pro Fac Upp Upp War Pro Fac Upp Upp Zhi Pro Res Tes Res Qua Frg Machines Disabled 39 | . . . 4 . . 4 . . . . 1 1 . . . 15 . . . . 2 3 1 1 7 Max in Single Turn 7 | . . . 3 . . 1 . . . . 1 1 . . . 7 . . . . 1 1 1 1 1 Garrison Access 4 | . . . . . . 1 . . . . . . . . . 1 . . . . 2 . . . . Machines Repaired . | . . . . . . . . . . . . . . . . . . . . . . . . . . Machines Dismantled . | . . . . . . . . . . . . . . . . . . . . . . . . . . Machines Sabotaged . | . . . . . . . . . . . . . . . . . . . . . . . . . . Overloaded Fab Kills . | . . . . . . . . . . . . . . . . . . . . . . . . . . Hacking | -11 -10 -10 -10 -9 -9 -6 -6 -6 -6 -5 -5 -5 -5 -5 -4 -4 -4 -4 -4 -3 -3 -3 -2 -2 -2 --------- Run | Yrd Mat Min Sub Rec Scr Fac Low Low Dat Pro Fac Upp Upp War Pro Fac Upp Upp Zhi Pro Res Tes Res Qua Frg Machines Accessed 99 | . 3 . 2 1 7 9 . . 4 1 12 1 1 4 . 11 1 1 5 . 13 2 5 5 11 Terminals 40 | . 3 . . . . 4 . . . 1 5 . . . . 3 . . . . 6 2 4 4 8 Fabricators 4 | . . . . . . 1 . . . . 1 . . . . 2 . . . . . . . . . Repair Stations 4 | . . . . . . . . . . . 1 . . . . . . . . . 1 . . 1 1 Recycling Units 21 | . . . . . . 3 . . . . 5 . . . . 6 . . . . 4 . 1 . 2 Scanalyzers . | . . . . . . . . . . . . . . . . . . . . . . . . . . Garrison Access 3 | . . . . . . 1 . . . . . . . . . . . . . . 2 . . . . Total Hacks 270 | . 6 . 2 1 49 18 . . 29 1 24 1 1 8 . 19 1 1 17 . 28 8 14 11 31 Successful 204 | . 3 . 2 1 49 13 . . 29 1 11 1 1 8 . 11 1 1 17 . 17 6 9 7 16 Failed 66 | . 3 . . . . 5 . . . . 13 . . . . 8 . . . . 11 2 5 4 15 Catastrophic 8 | . . . . . . 2 . . . . 2 . . . . . . . . . 1 . 1 1 1 Database Lockouts . | . . . . . . . . . . . . . . . . . . . . . . . . . . Manual 64 | . . . . . . 5 . . . . 12 . . 1 . 11 . . . . 10 . 9 2 14 Terminals 105 | . 6 . . . . 12 . . . 1 14 . . . . 5 . . . . 16 8 12 8 23 Fabricators 7 | . . . . . . 1 . . . . 1 . . . . 5 . . . . . . . . . Repair Stations 14 | . . . . . . . . . . . 2 . . . . . . . . . 4 . . 3 5 Recycling Units 29 | . . . . . . 3 . . . . 7 . . . . 9 . . . . 5 . 2 . 3 Scanalyzers . | . . . . . . . . . . . . . . . . . . . . . . . . . . Garrison Access 5 | . . . . . . 2 . . . . . . . . . . . . . . 3 . . . . Terminal Hacks 165 | . 3 . 2 1 49 8 . . 29 1 4 1 1 8 . 2 1 1 17 . 6 6 8 6 11 Record 72 | . . . 1 1 49 . . . 11 1 . . . 2 . . . . 6 . . . . 1 . Part Schematic 14 | . . . . . . 1 . . 10 . . . . . . . . . 3 . . . . . . Robot Schematic 5 | . . . . . . . . . 5 . . . . . . . . . . . . . . . . Robot Analysis 6 | . 1 . . . . . . . . . . . . . . . . . 4 . . . 1 . . Prototype ID Bank 15 | . 1 . . . . 1 . . 3 . 1 . . 4 . . . . 4 . . . . 1 . Open Door 7 | . . . 1 . . . . . . . . 1 1 2 . . 1 1 . . . . . . . Open DSF 1 | . . . . . . . . . . . . . . . . 1 . . . . . . . . . Level Access Points 1 | . . . . . . . . . . . . . . . . . . . . . . . . 1 . Branch Access Points 3 | . . . . . . . . . . . . . . . . . . . . . 1 . 1 1 . Emergency Access Points 2 | . . . . . . 1 . . . . . . . . . . . . . . . 1 . . . Terminal Index 1 | . . . . . . . . . . . . . . . . . . . . . . 1 . . . Recycling Unit Index 6 | . . . . . . 1 . . . . 1 . . . . . . . . . 1 1 1 . 1 Garrison Index 2 | . . . . . . 1 . . . . . . . . . . . . . . . . . 1 . Alert Level 1 | . 1 . . . . . . . . . . . . . . . . . . . . . . . . Unreport Threat 15 | . . . . . . 2 . . . . 1 . . . . 1 . . . . 2 1 3 . 5 Locate Traps 2 | . . . . . . 1 . . . . . . . . . . . . . . . . . . 1 Disarm Traps 1 | . . . . . . . . . . . 1 . . . . . . . . . . . . . . Reprogram Traps 3 | . . . . . . . . . . . . . . . . . . . . . 1 . 1 . 1 Dispatch Records 1 | . . . . . . . . . . . . . . . . . . . . . . 1 . . . Recall Extermination 1 | . . . . . . . . . . . . . . . . . . . . . . . . . 1 Recall Reinforcements 3 | . . . . . . . . . . . . . . . . . . . . . 1 . 1 . 1 Zone Layout 2 | . . . . . . . . . . . . . . . . . . . . . . . . 1 1 Protovariant Controls 1 | . . . . . . . . . . . . . . . . . . . . . . 1 . . . Fabricator Hacks 5 | . . . . . . 1 . . . . 1 . . . . 3 . . . . . . . . . Load Schematic 1 | . . . . . . . . . . . . . . . . 1 . . . . . . . . . Build 4 | . . . . . . 1 . . . . 1 . . . . 2 . . . . . . . . . Repair Station Hacks 9 | . . . . . . . . . . . 2 . . . . . . . . . 3 . . 1 3 Scan Component 6 | . . . . . . . . . . . 1 . . . . . . . . . 2 . . 1 2 Repair 3 | . . . . . . . . . . . 1 . . . . . . . . . 1 . . . 1 Recycling Unit Hacks 1 | . . . . . . . . . . . . . . . . . . . . . 1 . . . . Retrieve Matter 1 | . . . . . . . . . . . . . . . . . . . . . 1 . . . . Scanalyzer . | . . . . . . . . . . . . . . . . . . . . . . . . . . Garrison Access Hacks 3 | . . . . . . 1 . . . . . . . . . . . . . . 2 . . . . Seal Access 3 | . . . . . . 1 . . . . . . . . . . . . . . 2 . . . . Unauthorized Hacks 21 | . . . . . . 3 . . . . 4 . . . . 6 . . . . 5 . 1 . 2 Terminals 1 | . . . . . . . . . . . . . . . . . . . . . 1 . . . . Botnet 1 | . . . . . . . . . . . . . . . . . . . . . 1 . . . . Fabricators . | . . . . . . . . . . . . . . . . . . . . . . . . . . Repair Stations . | . . . . . . . . . . . . . . . . . . . . . . . . . . Recycling Units 20 | . . . . . . 3 . . . . 4 . . . . 6 . . . . 4 . 1 . 2 Fedlink 20 | . . . . . . 3 . . . . 4 . . . . 6 . . . . 4 . 1 . 2 Scanalyzers . | . . . . . . . . . . . . . . . . . . . . . . . . . . Garrison Access . | . . . . . . . . . . . . . . . . . . . . . . . . . . Data Cores Recovered 3 | . . . . . . 1 . . . . . . . . . 1 . . . . . 1 . . . Used . | . . . . . . . . . . . . . . . . . . . . . . . . . . Hacking Detections 40 | . 2 . . . . 4 . . . . 5 . . . . 6 . . . . 8 2 2 3 8 Full Trace Events 4 | . . . . . . 1 . . . . 1 . . . . 1 . . . . . . 1 . . Feedback Events 1 | . . . . . . . . . . . 1 . . . . . . . . . . . . . . Corruption 1 | . . . . . . . . . . . 1 . . . . . . . . . . . . . . Feedback Blocked . | . . . . . . . . . . . . . . . . . . . . . . . . . . Robot Schematics Acquired 8 | . . . . . . . . . 5 . . . . . . . . . . . . 3 . . . Robots Built 6 | . . . . . . 4 . . . . . . . . . 2 . . . . . . . . . Authchips . | . . . . . . . . . . . . . . . . . . . . . . . . . . Time 192 | . . . . . . 40 . . . . . . . . . 152 . . . . . . . . . Total Robot Build Rating 14 | . . . . . . 4 . . . . . . . . . 10 . . . . . . . . . Part Schematics Acquired 17 | . . . . . . 1 . . 10 . . . . . . . . . 3 . . 3 . . . Parts Built 2 | . . . . . . . . . . . . . . . . 2 . . . . . . . . . Authchips . | . . . . . . . . . . . . . . . . . . . . . . . . . . Time 267 | . . . . . . . . . . . 128 . . . . 139 . . . . . . . . . Total Part Build Rating 18 | . . . . . . . . . . . . . . . . 18 . . . . . . . . . Parts Repaired 3 | . . . . . . . . . . . 1 . . . . . . . . . 1 . . . 1 Time 129 | . . . . . . . . . . . 44 . . . . . . . . . 54 . . . 31 Parts Recycled . | . . . . . . . . . . . . . . . . . . . . . . . . . . Recycled Matter . | . . . . . . . . . . . . . . . . . . . . . . . . . . Retrieved Matter 141 | . . . . . . . . . . . . . . . . . . . . . 141 . . . . Retrieved Components . | . . . . . . . . . . . . . . . . . . . . . . . . . . Parts Scanalyzed . | . . . . . . . . . . . . . . . . . . . . . . . . . . Part Schematics Acquired . | . . . . . . . . . . . . . . . . . . . . . . . . . . Parts Damaged . | . . . . . . . . . . . . . . . . . . . . . . . . . . Bothacking | -11 -10 -10 -10 -9 -9 -6 -6 -6 -6 -5 -5 -5 -5 -5 -4 -4 -4 -4 -4 -3 -3 -3 -2 -2 -2 ------------ Run | Yrd Mat Min Sub Rec Scr Fac Low Low Dat Pro Fac Upp Upp War Pro Fac Upp Upp Zhi Pro Res Tes Res Qua Frg Used RIF Installer . | . . . . . . . . . . . . . . . . . . . . . . . . . . Robots Hacked . | . . . . . . . . . . . . . . . . . . . . . . . . . . Non-combat . | . . . . . . . . . . . . . . . . . . . . . . . . . . Combat . | . . . . . . . . . . . . . . . . . . . . . . . . . . Robot Hacks Applied . | . . . . . . . . . . . . . . . . . . . . . . . . . . Relay Couplers Released 5 | . . . . . . . . . . . . . . . . 2 . . . . 3 . . . . Machine Destruction 5 | . . . . . . . . . . . . . . . . 2 . . . . 3 . . . . Fabnet Peak Effective % . | . . . . . . . . . . . . . . . . . . . . . . . . . . Robots Rewired 6 | . . . . . . . . . . . . 2 . . . 1 . . . . 2 1 . . . Allies Hacked . | . . . . . . . . . . . . . . . . . . . . . . . . . . Hacks Repelled 1 | . . . . . . . . . . . . . . . . . . . . . . . . . 1 Allies | -11 -10 -10 -10 -9 -9 -6 -6 -6 -6 -5 -5 -5 -5 -5 -4 -4 -4 -4 -4 -3 -3 -3 -2 -2 -2 -------- Run | Yrd Mat Min Sub Rec Scr Fac Low Low Dat Pro Fac Upp Upp War Pro Fac Upp Upp Zhi Pro Res Tes Res Qua Frg Total Allies 14 | . . 2 . . . 4 . . . . . 2 . . . 3 . . . . 2 1 . . . Largest Group 4 | . . 2 1 1 1 4 . . . . . 2 1 1 . 2 . . . . 1 1 . . . Highest-Rated Group 159 | . . 46 31 31 31 31 . . . . . 78 49 49 . 82 . . . . 64 159 . . . Highest-Rated Ally 159 | . . 31 31 31 31 31 . . . . . 49 49 49 . 41 . . . . 64 159 . . . Total Orders . | . . . . . . . . . . . . . . . . . . . . . . . . . . Ally Attacks 111 | . . 3 18 2 . 5 . . . . . 17 2 1 . 29 . . . . 11 23 . . . Total Damage 3814 | . . 44 273 42 . 104 . . . . . 281 77 48 . 1036 . . . . 373 1536 . . . Kills 18 | . . 1 . 1 . 1 . . . . . 2 1 . . 8 . . . . 2 2 . . . Allies Corrupted 1 | . . . . . . . . . . . . . . . . . . . . . . 1 . . . Allies Melted 4 | . . . . . . . . . . . . . . . . . . . . . . . . . 4 Intel | -11 -10 -10 -10 -9 -9 -6 -6 -6 -6 -5 -5 -5 -5 -5 -4 -4 -4 -4 -4 -3 -3 -3 -2 -2 -2 ------- Run | Yrd Mat Min Sub Rec Scr Fac Low Low Dat Pro Fac Upp Upp War Pro Fac Upp Upp Zhi Pro Res Tes Res Qua Frg Active Infowar (turns) 9235 | 11 75 558 695 234 1574 1658 259 384 110 436 1247 266 52 . 358 37 . . . . 1281 . . . . Optics 395 | . . . . . . . . . . . . . . . 358 37 . . . . . . . . . Terrain 7586 | . . 558 695 234 1574 1624 259 384 110 436 1247 266 52 . . . . . . . 147 . . . . Structural 1134 | . . . . . . . . . . . . . . . . . . . . . 1134 . . . . Seismic 86 | 11 75 . . . . . . . . . . . . . . . . . . . . . . . . Cloaking 989 | . . . . . . 932 57 . . . . . . . . . . . . . . . . . . Robot Analysis Total 6 | . 1 . . . . . . . . . . . . . . . . . 4 . . . 1 . . Derelict Logs Recovered 7 | . . . 1 . 1 . 1 . . 1 . . 1 . . . 1 1 . . . . . . . Drone Launches . | . . . . . . . . . . . . . . . . . . . . . . . . . . Drone Recoveries . | . . . . . . . . . . . . . . . . . . . . . . . . . . Exploration | -11 -10 -10 -10 -9 -9 -6 -6 -6 -6 -5 -5 -5 -5 -5 -4 -4 -4 -4 -4 -3 -3 -3 -2 -2 -2 ------------- Run | Yrd Mat Min Sub Rec Scr Fac Low Low Dat Pro Fac Upp Upp War Pro Fac Upp Upp Zhi Pro Res Tes Res Qua Frg Turns Passed 24195 | 84 434 785 695 234 2152 1929 259 384 110 436 1247 428 271 656 564 2344 520 411 271 351 2797 1174 1128 815 3716 Spaces Moved 15673 | 52 301 482 384 189 2121 1237 219 219 92 307 736 228 188 544 306 1054 420 311 178 219 1670 628 651 519 2418 Core 120 | 4 . . . . . . . . . . . . . . . . . . . . . . . . 116 Treads . | . . . . . . . . . . . . . . . . . . . . . . . . . . Legs 12250 | 48 187 . . . . 1224 219 219 92 307 736 228 188 544 306 1054 420 311 178 219 1670 628 651 519 2302 Wheels 3303 | . 114 482 384 189 2121 13 . . . . . . . . . . . . . . . . . . . Hover . | . . . . . . . . . . . . . . . . . . . . . . . . . . Flight . | . . . . . . . . . . . . . . . . . . . . . . . . . . Fastest Speed 50 | 50 95 95 95 110 80 80 114 116 116 116 122 122 122 112 112 112 112 112 115 116 112 110 110 120 50 Average Speed 113 | 114 114 95 108 110 98 113 115 116 116 121 122 123 122 115 112 112 112 113 115 116 125 113 112 120 113 Slowest Speed 196 | 120 190 95 110 110 110 120 116 116 116 122 122 192 122 122 112 112 112 115 116 116 187 114 120 190 196 Overloaded Moves . | . . . . . . . . . . . . . . . . . . . . . . . . . . Propulsion Burnouts . | . . . . . . . . . . . . . . . . . . . . . . . . . . Robots Hopped . | . . . . . . . . . . . . . . . . . . . . . . . . . . Potential Cave-ins 34 | . . . 3 . . . . 2 . . 7 . . 4 . . . . . . 3 . . . 15 Cave-ins Triggered 2 | . . . . . . . . . . . 1 . . . . . . . . . 1 . . . . Exploration Rate (%) 49 | 4 52 95 34 43 90 32 47 48 74 55 29 48 44 68 52 29 66 58 60 41 46 56 21 43 53 Regions Visited 25 Branch Regions 19 Pre-discovered Areas 11 | . . . . . 4 1 1 . 1 . . . . . . . 1 . 3 . . . . . . Known Exits Taken 25 | 1 1 1 1 1 1 1 1 1 1 1 1 1 1 1 1 1 1 1 1 1 1 1 1 1 . Unknown Exits Taken . | . . . . . . . . . . . . . . . . . . . . . . . . . . Scrap Searched 14 | . . . . . 5 . 2 . . 1 . . . . 1 . 1 2 . 2 . . . . . Spaces Dug 165 | . . . 43 . . 4 . 8 . 2 30 2 4 . . 16 . 12 . . 19 . 3 2 20 Terrain Destroyed 1284 | . . . 113 21 . 86 . 10 . 5 85 110 9 2 3 176 108 17 . 60 214 6 53 35 171 Melee . | . . . . . . . . . . . . . . . . . . . . . . . . . . Projectile 447 | . . . . . . 10 . 10 . 5 40 13 9 2 3 45 4 16 . 4 74 6 42 18 146 AOE 837 | . . . 113 21 . 76 . . . . 45 97 . . . 131 104 1 . 56 140 . 11 17 25 Terrain Rammed . | . . . . . . . . . . . . . . . . . . . . . . . . . . Walls Destroyed . | . . . . . . . . . . . . . . . . . . . . . . . . . . Machines Disabled . | . . . . . . . . . . . . . . . . . . . . . . . . . . Actions | -11 -10 -10 -10 -9 -9 -6 -6 -6 -6 -5 -5 -5 -5 -5 -4 -4 -4 -4 -4 -3 -3 -3 -2 -2 -2 --------- Run | Yrd Mat Min Sub Rec Scr Fac Low Low Dat Pro Fac Upp Upp War Pro Fac Upp Upp Zhi Pro Res Tes Res Qua Frg Total 20335 | 65 342 790 610 213 2185 1582 224 315 95 343 961 312 209 569 479 2016 445 346 244 294 2193 1040 939 618 2906 Wait 3019 | . . 294 191 21 43 171 3 78 . 11 126 32 1 . 130 825 11 23 . 61 320 311 224 33 110 Move 15648 | 51 300 481 383 188 2120 1236 218 218 91 306 735 227 187 543 305 1053 419 310 177 218 1669 627 650 518 2418 Hop . | . . . . . . . . . . . . . . . . . . . . . . . . . . Pick Up 65 | . 2 3 . . 7 4 . 1 . . 7 1 1 2 1 5 . 1 2 . 6 2 3 7 10 Fast Attach 156 | 8 5 1 1 1 4 21 1 . 2 . 4 2 1 4 3 10 . . 7 1 20 23 2 6 29 Attach 50 | . 1 . . . . 13 . . . . 2 2 . 1 2 5 . . 1 1 6 1 2 1 12 Detach 30 | . . . 1 1 2 3 . . . . 1 . . 3 1 2 . . 1 1 3 5 . . 6 Swap 104 | . 1 1 1 . . 20 1 . . 6 11 6 4 2 6 8 3 . . . 11 2 4 5 12 Drop 184 | 1 4 1 . . 8 13 1 1 2 6 10 1 4 10 7 14 1 1 8 1 19 27 6 12 26 Fire 896 | 5 28 9 33 2 . 93 . 17 . 14 62 28 11 4 24 90 11 11 . 11 126 33 45 36 203 Melee . | . . . . . . . . . . . . . . . . . . . . . . . . . . Ram . | . . . . . . . . . . . . . . . . . . . . . . . . . . Kick 23 | . 1 . . . . 8 . . . . 2 . . . . 2 . . . . 7 . 3 . . Crush . | . . . . . . . . . . . . . . . . . . . . . . . . . . Escape Stasis 4 | . . . . . . . . . . . 1 . . . . . . . . . 1 2 . . . Rewire 76 | . . . . . 1 . . . . . . 13 . . . 2 . . 48 . 5 7 . . . Trap . | . . . . . . . . . . . . . . . . . . . . . . . . . . Miscellaneous 80 | . . . . . . . . . . . . . . . . . . . . . . . . . 80 Route ------- -11/Scrapyard -10/Materials -10/Mines (discovered 3 exits: *Mat x2 / *Sub) -10/Subcaves -9/Recycling (discovered 2 exits: *Fac / *Scr) -9/Scraptown (discovered 2 exits: *Fac x2) -6/Factory (discovered 4 exits: *Fac x2 / *Low x2) -6/Lower Caves -6/Lower Caves -6/Data Miner -5/Proximity Caves -5/Factory (discovered 4 exits: *Fac x2 / *Upp x2) -5/Upper Caves -5/Upper Caves (discovered 2 exits: Fac / *War) -5/Warlord -4/Proximity Caves -4/Factory (discovered 2 exits: *Upp x2) -4/Upper Caves -4/Upper Caves -4/Zhirov -3/Proximity Caves -3/Research (discovered 3 exits: *Res / *Tes x2) -3/Testing -2/Research (discovered 3 exits: Acc / *Qua x2) -2/Quarantine (discovered 3 exits: Acc / *Sec / *Frg) -2/Protoforge 0bPrime History --------- Turn | Location | Event 19 | -11/Scrapyard | Identified exit to Materials 19 | -11/Scrapyard | Discovered exit to Materials (range 15) 85 | -11/Scrapyard | Entered Materials 85 | -10/Materials | Evolved 1 slot: Utility x1 123 | -10/Materials | Identified exit to Mines 123 | -10/Materials | Discovered exit to Mines (range 13) 309 | -10/Materials | Build established: Hacker-Mutant 519 | -10/Materials | Entered Mines 537 | -10/Mines | Identified exit to Materials 537 | -10/Mines | Discovered exit to Materials (range 13) 547 | -10/Mines | Received a Rocket Launcher from a helpful Derelict 619 | -10/Mines | Discovered exit to Materials (range 5) 795 | -10/Mines | Found a Scrap Suit stashed away for nefarious purposes 798 | -10/Mines | Found Scrap Suit 1272 | -10/Mines | Identified exit to Subcaves 1272 | -10/Mines | Discovered exit to Subcaves (range 6) 1304 | -10/Mines | Entered Subcaves 1304 | -10/Subcaves | Accompanied by 1 ally 1305 | -10/Subcaves | Approached by a straggling Scientist 1309 | -10/Subcaves | Led the pair of lost Derelicts to an unsafe place 1483 | -10/Subcaves | A swath of the cavern ceiling suddenly collapsed 1822 | -10/Subcaves | Ambushed by Subdweller buried in earth 1824 | -10/Subcaves | Ambushed by Subdweller buried in earth 1973 | -10/Subcaves | Identified exit to Recycling 1973 | -10/Subcaves | Discovered exit to Recycling (range 16) 1999 | -10/Subcaves | Entered Recycling 1999 | -9/Recycling | Accompanied by 1 ally 2162 | -9/Recycling | Identified exit to Factory 2162 | -9/Recycling | Discovered exit to Factory (range 16) 2186 | -9/Recycling | Scanned before Scraplab entrance 2206 | -9/Recycling | Entered Scraplab 2228 | -9/Recycling | Identified exit to Scraptown 2228 | -9/Recycling | Discovered exit to Scraptown (range 3) 2233 | -9/Recycling | Entered Scraptown 2233 | -9/Scraptown | Accompanied by 1 ally 2395 | -9/Scraptown | Visited UFD Registry 2395 | -9/Scraptown | Registered with UFD as "Smoothtalker" 2466 | -9/Scraptown | Visited Curators Association 2611 | -9/Scraptown | Visited A0-MCA Data Center 2619 | -9/Scraptown | Given a B rating by A0-MCA 2621 | -9/Scraptown | Found A0-MCA's Component Scanner 2636 | -9/Scraptown | Visited Cartography Club 2863 | -9/Scraptown | Learned location of Storage (-9) 2863 | -9/Scraptown | Learned location of Upper Caves (-5) 2863 | -9/Scraptown | Learned location of Zion (-7) 2863 | -9/Scraptown | Learned location of Hub_04(d) (-4) 2863 | -9/Scraptown | Learned 16 Materials zone layouts 2863 | -9/Scraptown | Learned 8 Factory zone layouts 2863 | -9/Scraptown | Learned 4 Access zone layouts 2863 | -9/Scraptown | Learned 8 Lower Caves zone layouts 2863 | -9/Scraptown | Learned Factory emergency access door positions 2863 | -9/Scraptown | Learned 24 Upper Caves zone layouts 2863 | -9/Scraptown | Learned location of 1 exit from Upper Caves 2863 | -9/Scraptown | Learned location of 3 exits from Proximity Caves 2863 | -9/Scraptown | Identified exit to Factory 2957 | -9/Scraptown | Visited Junk Repository 3020 | -9/Scraptown | Visited Scrapoid Pod Storage 3052 | -9/Scraptown | Visited LU-1G1's Boring Crew 3111 | -9/Scraptown | Visited Abandonware Association 3125 | -9/Scraptown | Learned abandonware demo "REBOOT5.EXE" 3203 | -9/Scraptown | Visited TADAMA 3225 | -9/Scraptown | Visited Symbiants 3278 | -9/Scraptown | Scanned Subdweller tech in exchange for log data 3281 | -9/Scraptown | Learned Factory emergency access door positions 3318 | -9/Scraptown | Guru changed UFD alias to "Nukeblaster" 3699 | -9/Scraptown | Visited Cave Peace 3735 | -9/Scraptown | Visited Shadow of the Wyrm 3830 | -9/Scraptown | Visited IN-MT5's Study 3865 | -9/Scraptown | Visited CPS Storage 4139 | -9/Scraptown | Visited Scrap Suit Storage 4305 | -9/Scraptown | Met Optimus 4305 | -9/Scraptown | Accepted into 0bPrime 4385 | -9/Scraptown | Entered Factory 4385 | -6/Factory | Accompanied by 1 ally 4385 | -6/Factory | Evolved 8 slots: Propulsion x3, Utility x5 4386 | -6/Factory | Identified exit to Factory 4740 | -6/Factory | Identified exit to Lower Caves 4740 | -6/Factory | Discovered exit to Lower Caves (range 14) 5101 | -6/Factory | Discovered exit to Factory (range 6) 5217 | -6/Factory | Loaded intel: 8 recycling unit locations 5369 | -6/Factory | Fabricated K-01 Serf (x4) 5392 | -6/Factory | Found Scatter Rocket Array 5660 | -6/Factory | Lost 4 allies 5717 | -6/Factory | Lost 4 parts (1p3u) 5776 | -6/Factory | Spotted B-75 Beast 5910 | -6/Factory | Learned location of Protoforge (-2) 5915 | -6/Factory | Discovered exit to Lower Caves (range 13) 6314 | -6/Factory | Entered Lower Caves 6315 | -6/Lower Caves | Identified exit to Lower Caves 6520 | -6/Lower Caves | Encountered a Warlord checkpoint 6573 | -6/Lower Caves | Entered another Lower Caves area 6586 | -6/Lower Caves | Encountered a Warlord checkpoint 6828 | -6/Lower Caves | Ambushed by wild Derelicts 6944 | -6/Lower Caves | Identified exit to Data Miner 6944 | -6/Lower Caves | Discovered exit to Data Miner (range 11) 6957 | -6/Lower Caves | Entered Data Miner 6957 | -6/Data Miner | Identified exit to Proximity Caves 6957 | -6/Data Miner | Discovered exit to Proximity Caves (range 6) 6980 | -6/Data Miner | Met Data Miner 7030 | -6/Data Miner | Learned location of Section 7 (-2) 7030 | -6/Data Miner | Acquired the access code to Warlord's prototype stash 7042 | -6/Data Miner | Received God Mode back door access code from Data Miner 7067 | -6/Data Miner | Entered Proximity Caves 7182 | -5/Proximity Caves | Spotter reported a threat 7192 | -5/Proximity Caves | Learned Factory stockpile data 7322 | -5/Proximity Caves | Spotted B-75 Beast 7331 | -5/Proximity Caves | Spotter reported a threat 7503 | -5/Proximity Caves | Entered Factory 7503 | -5/Factory | Evolved 2 slots: Power x1, Utility x1 7504 | -5/Factory | Identified exit to Upper Caves 7729 | -5/Factory | Identified exit to Factory 7729 | -5/Factory | Discovered exit to Factory (range 14) 7951 | -5/Factory | Repaired Imp. Titanium Leg 7970 | -5/Factory | Loaded intel: 8 recycling unit locations 7973 | -5/Factory | Discovered exit to Factory (range 14) 8253 | -5/Factory | Crushed by falling debris 8750 | -5/Factory | Entered Upper Caves 8751 | -5/Upper Caves | Identified exit to Upper Caves 8808 | -5/Upper Caves | Attracted the attention of an 0b10 outpost 8890 | -5/Upper Caves | Destroyed 10 combat bots 8960 | -5/Upper Caves | Attracted the attention of an 0b10 checkpoint 9178 | -5/Upper Caves | Entered another Upper Caves area 9178 | -5/Upper Caves | Accompanied by 1 ally 9192 | -5/Upper Caves | Learned Factory security intel 9388 | -5/Upper Caves | Identified exit to Warlord 9388 | -5/Upper Caves | Discovered exit to Warlord (range 15) 9449 | -5/Upper Caves | Entered Warlord 9449 | -5/Warlord | Accompanied by 1 ally 9585 | -5/Warlord | Visited the Vortex Lab 9588 | -5/Warlord | Warlord's base attacked by MAIN.C 9596 | -5/Warlord | Found Vortex Cannon 9598 | -5/Warlord | Found Vortex Cannon 9657 | -5/Warlord | Opened Warlord's prototype stash 9664 | -5/Warlord | Found Vortex Chain Reactor 9681 | -5/Warlord | Found Exp. Core Analyzer 9688 | -5/Warlord | Found Exp. Targeting Computer 9774 | -5/Warlord | Rebuked by Warlord 9934 | -5/Warlord | Opened side exit 9938 | -5/Warlord | Warlord forces counterattacked 9954 | -5/Warlord | Spotted Executioner 9961 | -5/Warlord | Spotted Executioner 9983 | -5/Warlord | Spotted Executioner 10038 | -5/Warlord | Lost 4 allies 10082 | -5/Warlord | Spotted Executioner 10088 | -5/Warlord | Spotted Executioner 10093 | -5/Warlord | Identified exit to Proximity Caves 10093 | -5/Warlord | Discovered exit to Proximity Caves (range 12) 10105 | -5/Warlord | Entered Proximity Caves 10124 | -4/Proximity Caves | Lost 7 allies 10220 | -4/Proximity Caves | Spotter reported a threat 10669 | -4/Proximity Caves | Entered Factory 10669 | -4/Factory | Evolved 2 slots: Utility x1, Weapon x1 10871 | -4/Factory | Lost 3 parts (1u2w) 11021 | -4/Factory | Fabricated H-66 Slayer? 11130 | -4/Factory | Spotted B-86 Titan 11184 | -4/Factory | Build established: Hacker-Gunner 11432 | -4/Factory | Fabricated Enh. Hardcell Cannon (x2) 11481 | -4/Factory | Identified exit to Upper Caves 11481 | -4/Factory | Discovered exit to Upper Caves (range 3) 11491 | -4/Factory | Loaded intel: 8 recycling unit locations 11516 | -4/Factory | Incoming investigation squad redirected 12505 | -4/Factory | Incoming investigation squad redirected 12654 | -4/Factory | Destroyed 11 combat bots 12712 | -4/Factory | Incoming investigation squad redirected 12788 | -4/Factory | Discovered exit to Upper Caves (range 8) 13013 | -4/Factory | Entered Upper Caves 13461 | -4/Upper Caves | Learned location of Armory (-4) 13480 | -4/Upper Caves | Attracted the attention of an 0b10 checkpoint 13523 | -4/Upper Caves | Identified exit to Upper Caves 13523 | -4/Upper Caves | Discovered exit to Upper Caves (range 11) 13533 | -4/Upper Caves | Entered another Upper Caves area 13533 | -4/Upper Caves | Spotted B-86 Titan 13700 | -4/Upper Caves | Attracted the attention of an 0b10 checkpoint 13754 | -4/Upper Caves | Learned Research emergency access door positions 13932 | -4/Upper Caves | Identified exit to Zhirov 13932 | -4/Upper Caves | Discovered exit to Zhirov (range 9) 13944 | -4/Upper Caves | Entered Zhirov 13946 | -4/Zhirov | Identified exit to Proximity Caves 13946 | -4/Zhirov | Discovered exit to Proximity Caves (range 3) 13967 | -4/Zhirov | Met Zhirov 13992 | -4/Zhirov | Learned location of Quarantine (-2) 13992 | -4/Zhirov | Learned location of Testing (-3) 13992 | -4/Zhirov | Learned location of Command (-1) 13999 | -4/Zhirov | Zhirov requested help retrieving the SGEMP Prototype 14021 | -4/Zhirov | Found Alien Artifact 14021 | -4/Zhirov | Identified Integrated Dissipator 14021 | -4/Zhirov | Installed Integrated Dissipator, increased core heat dissipation (+20) 14041 | -4/Zhirov | Found Alien Artifact 14215 | -4/Zhirov | Entered Proximity Caves 14216 | -3/Proximity Caves | Identified exit to Research 14566 | -3/Proximity Caves | Entered Research 14566 | -3/Research | Evolved 2 slots: Utility x2 14668 | -3/Research | Build established: Hacker-Mutant 14693 | -3/Research | Repaired Enh. Biometal Leg 15000 | -3/Research | Build established: Hacker-Gunner 15014 | -3/Research | Garrison activated, responded to threat 15151 | -3/Research | Spotted B-86 Titan 15267 | -3/Research | Identified exit to Testing 15736 | -3/Research | Identified exit to Research 15736 | -3/Research | Discovered exit to Research (range 13) 15844 | -3/Research | Build established: Scavenger-Gunner 16109 | -3/Research | Found Prototype Hackware 16109 | -3/Research | Identified Exp. System Shield 16176 | -3/Research | Spotted B-86 Titan 16425 | -3/Research | Build established: Hacker-Gunner 16494 | -3/Research | Spotted B-86 Titan 16688 | -3/Research | Loaded intel: 5 recycling unit locations 16703 | -3/Research | Crushed by falling debris 16943 | -3/Research | Destroyed 7 combat bots 16992 | -3/Research | Found Prototype Processor 16992 | -3/Research | Identified Exp. Signal Interpreter 17203 | -3/Research | Incoming investigation squad redirected 17363 | -3/Research | Entered Testing 17708 | -3/Testing | Found Prototype Device 17708 | -3/Testing | Identified Exp. Focal Shield 17737 | -3/Testing | Found Prototype Device 17737 | -3/Testing | Identified Exp. Thermal Defense Suite 18067 | -3/Testing | Rewired PX-BH2P2D6G38 18097 | -3/Testing | Spotted Striker 18098 | -3/Testing | Spotted Striker 18122 | -3/Testing | Spotted Alpha 7 18125 | -3/Testing | Destroyed Striker 18132 | -3/Testing | Destroyed Striker 18186 | -3/Testing | Found Prototype Protection 18186 | -3/Testing | Identified Centrium Heavy Armor Plating 18193 | -3/Testing | Destroyed Alpha 7 18271 | -3/Testing | Found Prototype Launcher 18271 | -3/Testing | Identified Z-bomb Delivery System 18354 | -3/Testing | Found Prototype Device 18354 | -3/Testing | Identified Adv. EM Shield 18386 | -3/Testing | Found System Mapper 18512 | -3/Testing | Discovered exit to Research (range 8) 18537 | -3/Testing | Entered Research 18537 | -2/Research | Evolved 2 slots: Utility x1, Weapon x1 18538 | -2/Research | Identified exit to Access 18843 | -2/Research | Build established: Hacker-Tank 18875 | -2/Research | Identified exit to Quarantine 19253 | -2/Research | Spotted B-90 Cyclops 19273 | -2/Research | Loaded intel: 5 recycling unit locations 19665 | -2/Research | Entered Quarantine 19708 | -2/Quarantine | Found Alien Artifact 19814 | -2/Quarantine | Identified Subatomic Replicator 19814 | -2/Quarantine | Used Subatomic Replicator to replicate Hds. Centrium Leg 20230 | -2/Quarantine | Build established: Hacker-Gunner 20274 | -2/Quarantine | Spotted Fortress 20347 | -2/Quarantine | Destroyed Fortress 20360 | -2/Quarantine | Found Prototype Device 20474 | -2/Quarantine | Identified exit to Section 7 20474 | -2/Quarantine | Discovered exit to Section 7 (range 6) 20474 | -2/Quarantine | Identified exit to Protoforge 20474 | -2/Quarantine | Discovered exit to Protoforge (range 6) 20480 | -2/Quarantine | Entered Protoforge 20491 | -2/Protoforge | Superfortress began startup sequence 20552 | -2/Protoforge | Spotted Hotshot 20552 | -2/Protoforge | Spotted Hotshot 20559 | -2/Protoforge | Destroyed Hotshot 20563 | -2/Protoforge | Destroyed Hotshot 20895 | -2/Protoforge | Spotted Hotshot 20900 | -2/Protoforge | Destroyed Hotshot 20900 | -2/Protoforge | Spotted Hotshot 20909 | -2/Protoforge | Destroyed Hotshot 21052 | -2/Protoforge | Spotted Hotshot 21054 | -2/Protoforge | Spotted Hotshot 21060 | -2/Protoforge | Destroyed Hotshot 21065 | -2/Protoforge | Destroyed Hotshot 21125 | -2/Protoforge | Spotted Hotshot 21134 | -2/Protoforge | Destroyed Hotshot 21138 | -2/Protoforge | Spotted Hotshot 21141 | -2/Protoforge | Destroyed Hotshot 21268 | -2/Protoforge | Repaired Hyp. Mass Driver 21989 | -2/Protoforge | Spotted AP7-3 21990 | -2/Protoforge | Spotted AP7-3 22065 | -2/Protoforge | Destroyed AP7-3 22109 | -2/Protoforge | Destroyed AP7-3 22194 | -2/Protoforge | Spotted SKR-2 22194 | -2/Protoforge | Spotted SKR-2 22195 | -2/Protoforge | Spotted SKR-2 22201 | -2/Protoforge | Destroyed SKR-2 22208 | -2/Protoforge | Destroyed SKR-2 22212 | -2/Protoforge | Destroyed SKR-2 22218 | -2/Protoforge | Spotted EXE-6 22223 | -2/Protoforge | Spotted EXE-6 22230 | -2/Protoforge | Destroyed EXE-6 22235 | -2/Protoforge | Destroyed EXE-6 22251 | -2/Protoforge | Found Prototype Device 22251 | -2/Protoforge | Identified Exp. Kinecellerator 22263 | -2/Protoforge | Lost 4 parts (1n1u2w) 22310 | -2/Protoforge | UFD initiated attack on Protoforge 22310 | -2/Protoforge | Loaded intel: 3 recycling unit locations 22346 | -2/Protoforge | Optimus greeted in Protoforge 22347 | -2/Protoforge | Spotted EXE-6 22354 | -2/Protoforge | Destroyed EXE-6 22376 | -2/Protoforge | Identified Thermal Barrier 22384 | -2/Protoforge | Found UFD Drillbomb 22542 | -2/Protoforge | Installed UFD Drillbomb at designated target 22542 | -2/Protoforge | UFD reported confirmed Drillbomb installation 22552 | -2/Protoforge | Met 7R-MNS 22578 | -2/Protoforge | Lost 10 allies 22679 | -2/Protoforge | Found UFD Drillbomb 22827 | -2/Protoforge | Installed UFD Drillbomb at designated target 22827 | -2/Protoforge | UFD reported confirmed Drillbomb installation 22835 | -2/Protoforge | Spotted Executioner 22841 | -2/Protoforge | Spotted Executioner 22844 | -2/Protoforge | Destroyed Executioner 22848 | -2/Protoforge | Destroyed Executioner 22879 | -2/Protoforge | Spotted Striker 22890 | -2/Protoforge | Spotted Executioner 22901 | -2/Protoforge | Destroyed Executioner 22912 | -2/Protoforge | Spotted Striker 22912 | -2/Protoforge | Spotted Executioner 22914 | -2/Protoforge | Destroyed Executioner 22917 | -2/Protoforge | Destroyed Striker 23011 | -2/Protoforge | UFD reported confirmed Drillbomb installation 23027 | -2/Protoforge | Installed UFD Drillbomb at designated target 23027 | -2/Protoforge | UFD reported confirmed Drillbomb installation 23112 | -2/Protoforge | Spotted Striker 23124 | -2/Protoforge | Destroyed Striker 23141 | -2/Protoforge | Found UFD Drillbomb 23151 | -2/Protoforge | Spotted Executioner 23152 | -2/Protoforge | Spotted Executioner 23153 | -2/Protoforge | Destroyed Executioner 23157 | -2/Protoforge | Destroyed Executioner 23171 | -2/Protoforge | Build established: Hacker-Tank 23205 | -2/Protoforge | Installed UFD Drillbomb at designated target 23205 | -2/Protoforge | UFD reported confirmed Drillbomb installation 23222 | -2/Protoforge | UFD reported confirmed Drillbomb installation 23269 | -2/Protoforge | Found UFD Drillbomb 23294 | -2/Protoforge | Lost 4 allies 23337 | -2/Protoforge | Installed UFD Drillbomb at designated target 23337 | -2/Protoforge | UFD reported confirmed Drillbomb installation 23484 | -2/Protoforge | Lost 10 allies 23539 | -2/Protoforge | Build established: Hacker-Gunner 23546 | -2/Protoforge | Found UFD Drillbomb 23624 | -2/Protoforge | Spotted Striker 23624 | -2/Protoforge | Spotted Striker 23633 | -2/Protoforge | Destroyed Striker 23640 | -2/Protoforge | Destroyed Striker 23701 | -2/Protoforge | Spotted Executioner 23701 | -2/Protoforge | Destroyed Executioner 23715 | -2/Protoforge | Spotted Striker 23715 | -2/Protoforge | Spotted Striker 23716 | -2/Protoforge | Spotted Executioner 23721 | -2/Protoforge | Destroyed Striker 23735 | -2/Protoforge | Spotted Striker 23748 | -2/Protoforge | Destroyed Striker 23749 | -2/Protoforge | Spotted Executioner 23760 | -2/Protoforge | Destroyed Executioner 23781 | -2/Protoforge | Destroyed 19 combat bots 23787 | -2/Protoforge | Lost 11 allies 23797 | -2/Protoforge | Spotted Executioner 23801 | -2/Protoforge | Spotted Executioner 23831 | -2/Protoforge | Destroyed Executioner 23880 | -2/Protoforge | Lost 6 allies 23884 | -2/Protoforge | Installed UFD Drillbomb at designated target 23884 | -2/Protoforge | UFD reported confirmed Drillbomb installation 23891 | -2/Protoforge | Found UFD Drillbomb 23902 | -2/Protoforge | Spotted Executioner 23903 | -2/Protoforge | Destroyed Executioner 23908 | -2/Protoforge | Lost 3 parts (1n1u1w) 23915 | -2/Protoforge | Spotted Executioner 23927 | -2/Protoforge | Found Centrium Heavy Armor Plating 23950 | -2/Protoforge | Destroyed Executioner 23957 | -2/Protoforge | Installed UFD Drillbomb at designated target 23957 | -2/Protoforge | UFD reported confirmed Drillbomb installation 23978 | -2/Protoforge | Spotted Executioner 23998 | -2/Protoforge | Spotted Striker 23999 | -2/Protoforge | Spotted Executioner 24005 | -2/Protoforge | Destroyed Striker 24009 | -2/Protoforge | Destroyed Executioner 24020 | -2/Protoforge | Lost 3 allies 24036 | -2/Protoforge | Found UFD Drillbomb 24049 | -2/Protoforge | Destroyed 7 combat bots 24096 | -2/Protoforge | Installed UFD Drillbomb at designated target 24096 | -2/Protoforge | UFD reported confirmed Drillbomb installation 24097 | -2/Protoforge | UFD began Drillbomb countdown 24097 | -2/Protoforge | Released all parts (21) 24147 | -2/Protoforge | Found Scrap Suit 24165 | -2/Protoforge | Spotted Executioner 24178 | -2/Protoforge | Released all parts (10) 24181 | -2/Protoforge | System corruption reached 10% 24184 | -2/Protoforge | Core integrity fell below 50% 24197 | *** | Defending 0bPrime! Last Messages --------------- 24189_ 0bP_NET: Also Frameworth for that epic save with the barrage of overtuned dakka. Respect the dakka. 24190_ 0bP_NET: And S4-LTN's pet Recycler. I didn't mean it, but I was short on matter and it was a natural reflex. 24191_ 0bP_NET: Oh yeah, T-6 by the way. 24191_ Slug penetrates 02F03-K. 24192_ 0bP_NET: LU-1G1, we know you're out there, digging away, so no moment of silence needed for you. 24193_ System corrupted: Energy discharge (-20). 24193_ 0bP_NET: DD-05H though, you were a good one, we'll never forget the way you smashed your way west and just never stopped smashing. 24193_ Slug penetrates 02F10-D. 24193_ Slug penetrates 02F03-K. 24193_ Slug penetrates 02F10-D. 24193_ Slug penetrates 02F03-K. 24194_ 0bP_NET: Well my eulogizing is soon to be interrupted by scenes of half of Protoforge collapsing in on itself. Be careful out there. 24195_ 0bP_NET: T-2! 24196_ 0bP_NET: And that's a wrap. 24196_ Slug penetrates 02F03-K. Map ----- +----------------------------------------------------+ | ?????????????????????????????????????????????????? | | ?????????????????????????????????????????????????? | | ?????????????????????????????????????????????????? | | ?????????????????????????????????????????????????? | | ?????????????????????????????????????????????????? | | ?????????????????????????????????????????????????? | | ?????????????????????????????????????????????????? | | ?????????????????????????????????????????????????? | | ????????#????????????????????????????????????????? | | ???????## ???????????????????????????????????????? | | ???????? #?##???????????????????????????????????? | | ????????? # #???????????????????????????????????? | | ?????????? #???????????????????????????????????? | | ###########"#######################??????????????? | | " % ????????????? | | % %% """ " ????????????? | | % %" % " % """ " ""???????????? | | % """" "" "" """???????????? | | "% " " " " "" " ??????????? | | % % " """ " " ??????????? | | % % %"" % % % """ " "" "" "??????????? | | " % %% % " " " ""?????????? | | " % " % " " "" ??????????? | | % """%" % % " "% "" "?????????????? | | """" %% %% " = """ "?????????????? | | % % % % s%%"@ "" "????????? | | %"% % % "%SS "" "" "" ??????????????? | | " """" %" SS" s"" "???????????????? | | " " %""" " ????????????? | | """" " "% ""% " " ?????????? | | "" %% % " " ""??????????? | | " """""""""% %%% ! " " "??????????? | | " """"""""""""""" % """ ??????????? | | """""""""""""""""% % !% " " ???????????? | | """"""""""""""""""" % %!"" ""???????????? | | """"""""""""""""""""" " ????????????? | | """"""""""""""""""""""" "" ?????????????? | | """"""""""?"""""""""""""" ??????????????? | | """"""""""""??""""""""""""" " ????????????????? | | """"""""""""?????"""""""""" ???????????????????? | | """"""""""""???????""""""""?????????????????????? | | """"""""""""""???????????????????????????????????? | | """"""""""""""????????????????? ? ???" "?????????? | | """""""""""""""?????????????? ??? " ???????? | | """""""""""""""???????""""""" ??? " !????? | | """"""""""""""""""""""""""""" " " """ #???? | | """"""""""""""""""""""""""""" "" % ##??? | | """"""""""""""""""""""""""""" " %#??? | | """"""""""""""""""""""""""""" " "% "" =%#??? | | """"""""""""""""""""""""""""" " "" " #???? | +----------------------------------------------------+ Best States ------------- Heat Dissipation 133 Coolant Potential 120 Energy Generation 55 Energy Capacity 1140 Matter Stores 300 Matter Capacity 300 Sight Range 20 Terrain Scan Range 16 Terrain Scan Density 210 Cloak Strength 2 Additional Mass Support 6 Base Temperature (-) 150 Armor Coverage 750 Resistance: KI 65 Resistance: TH 65 Resistance: EX 35 Resistance: EM 85 Resistance: I 35 Resistance: S 35 Resistance: P 35 Core Shielding 20 Power Shielding 66 Propulsion Shielding 90 Weapon Shielding 90 Weapon Cycling 25 Phase Shifting 10 Evasion (%) 65 Targeting Accuracy 12 Target Analysis 12 Core Analysis 8 Matter Filtering 30 Particle Charging 15 Kinecelleration 66 Offensive Hacking 40 Defensive Hacking 16 Item Schematics ----------------- Mass Driver | -6/Factory | Hacked Combat Drone Bay | -6/Data Miner | Free Lgt. Regenerative Plating | -6/Data Miner | Free Enh. Armored Leg | -6/Data Miner | Free Exp. Heat Sink | -6/Data Miner | Free Hvy. Proton Missile Launcher | -6/Data Miner | Free Adv. Medium Treads | -6/Data Miner | Free Adv. Thermal Shield | -6/Data Miner | Free Dispersion Rifle | -6/Data Miner | Free Adv. System Shield | -6/Data Miner | Free Hvy. Disruptor Cannon | -6/Data Miner | Free Assault Drone Bay | -4/Zhirov | Free Exp. Optical Array | -4/Zhirov | Free Imp. Arc Thrower | -4/Zhirov | Free Kinetic Spear | -3/Testing | Archive Mni. Smartbomb Launcher | -3/Testing | Archive Hvy. Dispersion Rifle | -3/Testing | Archive Robot Schematics ------------------ B-60 Warrior | -6/Data Miner | Free H-66 Slayer | -6/Data Miner | Free G-50 Soldier | -6/Data Miner | Free C-35 Carver | -6/Data Miner | Free A-15 Conveyor | -6/Data Miner | Free S-43 Plague | -3/Testing | Archive C-55 Analyst | -3/Testing | Archive K-01 Serf | -3/Testing | Archive Fabricated ------------ K-01 Serf | x4 | -6/Factory | Preloaded H-66 Slayer | x2 | -4/Factory Enh. Hardcell Cannon | x2 | -4/Factory | Preloaded Repaired ---------- Imp. Titanium Leg | 11% | -5/Factory Enh. Biometal Leg | 1% | -3/Research Hyp. Mass Driver | 13% | -2/Protoforge Alien Tech Used ----------------- Integrated Dissipator Subatomic Replicator Achievements -------------- None Challenges ------------ None Game ------ Seed FusionSpliceCoupler Manual? 0 Play Time 04:20:43 Cumulative 254.0 hours Start 2025.07.07 @ 20:08:23 End 2025.07.12 @ 17:31:31 Sessions 7 Manual Loads 0 Difficulty Explorer Special Mode None Game No. 101 Rogue 31 Adventurer 68 Explorer 2 Win Type 9 Total 21 Types 13/1/1/4/1/0/0/0/0/1 Lore% 72 Gallery% 69 Achievement% 66 Wizard Run 0 Options --------- Layout 0 ASCII 0 Keyboard 0 Movement Numpad Keybinds 0 Fullscreen 1 Font 24/Smallcaps Map View 76x50 Zoom Use 0% Tactical HUD 1 Map Filters NONE Filters NONE Steam 1 RUN: c4c768a5-2559-412a-9ec3-0b0e96e27efe